bitfinex-derivatives/quotes_SOLF0:USTF0_20250509
["timestamp","ask_amount","ask_price","bid_price","bid_amount"]
[1746767050942,6.1714,162.06,162.03,6.1724]
[1746767051545,6.1712,162.07,162.03,6.1724]
[1746767052240,6.1712,162.07,162.04,6.1722]
[1746767054551,6.1715,162.06,162.04,6.1722]
[1746767056153,6.1712,162.07,162.04,6.1722]
[1746767059455,357.0,162.19,162.06,6.18119298]
[1746767059657,27.62,162.2,162.09,6.18119298]
[1746767059658,31.6447,162.2,162.09,6.18119298]
[1746767059858,6.167,162.18,162.13,6.1685]
[1746767060046,31.6447,162.2,162.1,27.64]
[1746767060860,6.1667,162.19,162.14,6.1682]
[1746767061059,6.1667,162.19,162.1,27.64]
[1746767061659,37.8109,162.2,162.15,6.1677]
[1746767061959,37.8109,162.2,162.1,27.64]
[1746767062660,31.6447,162.2,162.1,27.64]
[1746767062963,31.6447,162.2,162.14,6.1682]
[1746767063261,6.1666,162.19,162.1,27.64]
[1746767064063,6.167,162.18,162.1,27.64]
[1746767064962,6.167,162.18,162.14,6.1683]
[1746767065260,6.1666,162.19,162.14,6.1683]
[1746767065562,31.6447,162.2,162.14,6.1683]
[1746767065762,6.1672,162.18,162.14,6.1683]
[1746767066358,6.1673,162.17,162.14,6.1683]
[1746767066563,6.1673,162.17,162.13,6.1687]
[1746767066864,31.6447,162.2,162.13,6.1687]
[1746767067063,6.1676,162.17,162.13,6.1687]
[1746767067260,31.6447,162.2,162.13,6.1687]
[1746767067762,6.1675,162.17,162.13,6.1687]
[1746767067963,31.6447,162.2,162.13,6.1687]
[1746767068164,6.18119298,162.18,161.93,603.43514559]
[1746767068365,6.18119298,162.18,162.04,6.18119298]
[1746767068563,6.18119298,162.18,162.04,33.80119298]
[1746767068763,6.18119298,162.18,162.08,6.1704]
[1746767069163,6.18119298,162.18,162.04,33.80119298]
[1746767069365,27.62,162.17,162.04,33.80119298]
[1746767069559,27.62,162.16,162.04,33.80119298]
[1746767069760,6.1693,162.12,162.07,6.1709]
[1746767070765,6.1693,162.12,162.08,6.1705]
[1746767071570,2.0894,162.14,162.07,6.171]
[1746767071870,29.569,162.13,162.04,33.80119298]
[1746767072170,27.62,162.12,162.04,33.80119298]
[1746767072366,6.1695,162.11,162.04,33.80119298]
[1746767072870,27.62,162.12,162.04,33.80119298]
[1746767073059,27.62,162.12,162.04,35.71819298]
[1746767073872,27.62,162.12,162.11,6.1695]
[1746767075273,27.62,162.12,162.1,6.1698]
[1746767077376,27.62,162.12,162.11,6.1695]
[1746767077575,29.6049,162.15,162.08,27.62]
[1746767078377,27.62,162.15,162.08,27.62]
[1746767078571,27.62,162.15,162.13,6.1688]
[1746767079977,27.62,162.15,162.14,6.1684]
[1746767081275,35.8543,162.18,162.15,6.1679]
[1746767081483,27.6,162.18,162.1,6.18119298]
[1746767082481,27.6,162.18,162.14,6.1682]
[1746767083179,33.7672,162.18,162.13,6.1687]
[1746767083481,27.6,162.18,162.1,6.18119298]
[1746767083681,27.6,162.18,162.12,6.1691]
[1746767084282,6.1679,162.16,162.12,6.1691]
[1746767084679,27.6,162.18,162.12,6.1691]
[1746767084884,6.1682,162.15,162.12,6.1691]
[1746767086884,6.1684,162.14,162.12,6.1691]
[1746767088284,6.168,162.15,162.12,6.1691]
[1746767091687,6.1685,162.14,162.11,6.1694]
[1746767091888,27.6,162.18,162.11,6.1694]
[1746767092080,27.6,162.18,162.1,6.18119298]
[1746767093689,6.1682,162.15,162.12,6.1691]
[1746767096990,6.1686,162.14,162.11,6.1695]
[1746767097290,27.6,162.18,162.1,6.18119298]
[1746767097590,6.1682,162.15,162.12,6.1691]
[1746767099592,6.1685,162.14,162.11,6.1694]
[1746767100294,6.1688,162.13,162.11,6.1694]
[1746767100489,27.6,162.18,162.08,29.4843]
[1746767100687,2.0149,162.17,162.08,27.58]
[1746767100888,6.1688,162.13,162.1,6.1697]
[1746767101385,6.1688,162.13,162.08,27.58]
[1746767101690,6.1688,162.13,162.1,6.1695]
[1746767101892,6.1685,162.14,162.08,27.58]
[1746767102092,2.0149,162.17,162.08,27.58]
[1746767102393,2.0149,162.17,162.12,6.1689]
[1746767102585,6.1682,162.15,162.12,6.1689]
[1746767104195,6.167,162.18,162.15,6.1679]
[1746767104393,33.767,162.18,162.15,6.1679]
[1746767106598,27.6,162.18,162.12,33.76119298]
[1746767106800,31.5117,162.22,162.12,33.76119298]
[1746767107191,6.1659,162.21,162.17,6.1669]
[1746767107700,33.7655,162.22,162.15,6.18119298]
[1746767108196,33.7655,162.22,162.19,6.1661]
[1746767108395,27.6,162.22,162.16,27.58]
[1746767108798,27.6,162.22,162.19,6.1662]
[1746767108998,33.7653,162.22,162.19,6.1662]
[1746767109195,27.6,162.22,162.16,27.58]
[1746767109603,6.1658,162.21,162.18,6.1666]
[1746767109803,27.6,162.22,162.18,6.1666]
[1746767110505,6.1659,162.21,162.18,6.1666]
[1746767110704,27.6,162.22,162.19,6.1665]
[1746767110905,357.0,162.23,162.19,6.1665]
[1746767111106,6.1653,162.23,162.19,6.1665]
[1746767111905,6.1654,162.22,162.19,6.1665]
[1746767112099,27.6,162.25,162.16,27.58]
[1746767112306,27.6,162.25,162.18,6.18119298]
[1746767112806,6.165,162.23,162.2,6.1658]
[1746767113208,6.1647,162.24,162.21,6.1657]
[1746767114407,33.7644,162.25,162.18,6.18119298]
[1746767115805,6.1646,162.24,162.21,6.1655]
[1746767117901,6.1646,162.24,162.22,6.1653]
[1746767118509,6.1646,162.24,162.21,6.1656]
[1746767120409,6.165,162.23,162.2,6.166]
[1746767121409,6.165,162.23,162.2,6.1658]
[1746767122212,6.1646,162.24,162.21,6.1657]
[1746767122913,6.165,162.23,162.2,6.166]
[1746767123611,6.1647,162.24,162.2,6.166]
[1746767124110,6.1647,162.24,162.18,6.18119298]
[1746767124111,6.1647,162.24,162.21,6.1655]
[1746767124312,27.6,162.25,162.18,6.18119298]
[1746767124914,33.7645,162.25,162.21,6.1654]
[1746767126116,33.7645,162.25,162.18,6.18119298]
[1746767128218,27.6,162.25,162.18,6.18119298]
[1746767128521,27.6,162.25,162.16,6.1136]
[1746767128920,6.1653,162.23,162.19,6.1662]
[1746767129112,27.6,162.25,162.19,6.1662]
[1746767129315,27.6,162.25,162.16,6.1136]
[1746767129609,6.1646,162.24,162.2,6.1659]
[1746767129809,27.6,162.25,162.2,6.1659]
[1746767131020,6.165,162.23,162.2,6.1659]
[1746767131319,27.6,162.25,162.19,6.1664]
[1746767131520,6.1652,162.23,162.17,27.54]
[1746767132024,6.1651,162.23,162.17,27.54]
[1746767132319,6.1651,162.23,162.19,6.1661]
[1746767132515,6.1654,162.22,162.19,6.1661]
[1746767133222,6.1651,162.23,162.2,6.1661]
[1746767133819,27.6,162.25,162.04,74.3442]
[1746767134122,27.54,162.24,162.1,33.72119298]
[1746767134523,6.1671,162.18,162.14,6.1683]
[1746767134921,27.56,162.2,162.14,6.1683]
[1746767135222,6.1673,162.17,162.14,6.1683]
[1746767135521,6.1673,162.17,162.13,6.1686]
[1746767135723,27.56,162.2,162.12,27.54]
[1746767135923,55.1,162.2,162.1,6.18119298]
[1746767136120,4.1292,162.19,162.11,6.1693]
[1746767136321,6.1682,162.15,162.1,33.72119298]
[1746767136622,6.1728,162.19,162.11,6.1695]
[1746767137421,6.1685,162.14,162.11,6.1695]
[1746767137622,6.1728,162.19,162.1,33.7099]
[1746767137822,6.1728,162.19,162.1,27.54]
[1746767138623,6.1728,162.19,162.1,33.7098]
[1746767138824,6.1728,162.19,162.1,27.54]
[1746767139324,6.1728,162.19,162.1,33.7098]
[1746767139823,6.1687,162.14,162.1,33.7098]
[1746767141219,27.56,162.13,162.06,6.18119298]
[1746767141420,27.52,162.13,162.04,27.52]
[1746767141622,27.52,162.13,162.04,55.06]
[1746767141924,6.1702,162.1,162.04,55.06]
[1746767142120,6.1702,162.1,162.04,27.52]
[1746767142324,6.1702,162.1,162.04,55.06]
[1746767142524,6.1702,162.1,162.06,6.1712]
[1746767143326,27.54,162.12,162.01,566.46119298]
[1746767143626,33.6135,162.12,162.02,27.54]
[1746767144027,33.6135,162.12,162.03,6.1723]
[1746767144228,33.6135,162.12,162.01,61.24119298]
[1746767144528,6.1713,162.07,162.03,6.1723]
[1746767145329,27.54,162.09,162.01,61.24119298]
[1746767145523,27.54,162.09,162.04,6.18119298]
[1746767146528,27.54,162.09,162.07,6.1708]
[1746767146730,61.1535,162.12,162.07,6.1708]
[1746767146929,6.1696,162.11,162.07,6.1708]
[1746767147231,55.08,162.12,162.04,6.18119298]
[1746767147530,33.7081,162.15,162.07,6.18119298]
[1746767147826,27.54,162.15,162.1,6.18119298]
[1746767148026,27.54,162.15,162.12,6.169]
[1746767148428,27.54,162.15,162.1,6.18119298]
[1746767150130,6.1679,162.16,162.13,6.1688]
[1746767150521,539.0673,162.17,162.09,33.72119298]
[1746767150729,27.54,162.18,162.09,33.72119298]
[1746767151335,33.707,162.18,162.14,6.1681]
[1746767151630,33.707,162.18,162.09,33.72119298]
[1746767151933,27.54,162.18,162.1,27.54]
[1746767152435,27.54,162.18,162.15,6.1677]
[1746767153323,27.54,162.18,162.1,27.54]
[1746767154134,6.1673,162.17,162.1,27.54]
[1746767154629,27.54,162.18,162.1,27.54]
[1746767154836,27.54,162.18,162.15,6.1679]
[1746767155135,27.54,162.18,162.1,27.54]
[1746767155836,33.7071,162.18,162.14,6.1681]
[1746767156435,27.54,162.18,162.1,27.54]
[1746767157134,33.7069,162.18,162.1,27.54]
[1746767157837,33.7069,162.18,162.15,6.1677]
[1746767158139,33.7069,162.18,162.1,27.54]
[1746767158332,33.7069,162.18,162.14,6.1683]
[1746767158528,33.7069,162.18,162.1,27.54]
[1746767159439,357.0,162.22,162.1,27.54]
[1746767159643,27.54,162.21,162.13,6.18119298]
[1746767159940,6.1666,162.19,162.15,6.1677]
[1746767160332,27.54,162.21,162.13,33.70119298]
[1746767160534,27.54,162.21,162.2,6.1661]
[1746767161034,27.54,162.24,162.22,6.1653]
[1746767161439,27.54,162.24,162.17,27.52]
[1746767161730,27.54,162.24,162.2,6.1658]
[1746767161941,27.54,162.24,162.17,27.52]
[1746767162140,6.1652,162.23,162.19,6.1664]
[1746767162337,27.54,162.24,162.17,27.52]
[1746767162636,33.7047,162.24,162.2,6.1659]
[1746767162841,27.54,162.24,162.17,27.52]
[1746767163243,6.1656,162.22,162.17,27.52]
[1746767163744,27.54,162.24,162.17,27.52]
[1746767164139,6.1651,162.23,162.17,27.52]
[1746767164340,27.54,162.24,162.18,6.18119298]
[1746767165140,357.0,162.26,162.18,6.18119298]
[1746767165346,27.52,162.27,162.18,6.18119298]
[1746767165949,6.1646,162.24,162.21,6.1655]
[1746767166844,8.28879298,162.3,162.18,6.18119298]
[1746767166845,2.1076,162.3,162.18,6.18119298]
[1746767167044,29.6276,162.3,162.21,33.70119298]
[1746767167950,6.1637,162.27,162.21,33.70119298]
[1746767168555,6.1637,162.27,162.23,6.1647]
[1746767169250,6.1637,162.27,162.24,6.1645]
[1746767171250,6.1632,162.28,162.25,6.1642]
[1746767171446,29.6276,162.3,162.21,61.22119298]
[1746767171749,6.1637,162.27,162.23,6.1647]
[1746767171952,6.1637,162.27,162.21,61.22119298]
[1746767173652,6.1631,162.28,162.21,61.22119298]
[1746767173855,2.1076,162.3,162.21,61.22119298]
[1746767174154,6.1629,162.29,162.25,6.1639]
[1746767174355,6.1629,162.29,162.21,61.22119298]
[1746767175155,27.5,162.3,162.21,61.22119298]
[1746767175352,587.92,162.33,162.24,6.18119298]
[1746767175557,587.92,162.33,162.25,27.5]
[1746767175854,566.5814,162.33,162.25,55.0]
[1746767176053,560.42,162.33,162.25,55.0]
[1746767177554,27.5,162.33,162.27,6.18119298]
[1746767177756,27.5,162.33,162.3,6.162]
[1746767178053,27.5,162.33,162.25,55.0]
[1746767178255,27.5,162.33,162.26,6.1638]
[1746767178651,27.5,162.33,162.24,27.5]
[1746767180360,6.18119298,162.32,162.19,27.5]
[1746767180662,27.5,162.31,162.2,27.5]
[1746767180959,31.5122,162.31,162.2,27.5]
[1746767181159,1.9975,162.3,162.2,27.5]
[1746767181355,6.1638,162.27,162.23,6.1647]
[1746767182163,27.5,162.29,162.18,33.68119298]
[1746767182350,27.5,162.29,162.19,27.5]
[1746767182760,6.1638,162.26,162.22,6.1653]
[1746767183559,6.1636,162.27,162.2,6.18119298]
[1746767183756,27.5,162.29,162.2,6.18119298]
[1746767184059,6.1635,162.27,162.23,6.1646]
[1746767184259,27.5,162.29,162.19,33.68119298]
[1746767184559,6.1651,162.23,162.19,6.1664]
[1746767184860,27.5,162.25,162.19,6.1664]
[1746767185062,6.1654,162.22,162.18,6.1667]
[1746767185250,27.5,162.25,162.16,33.68119298]
[1746767185651,27.5,162.25,162.14,31.5677]
[1746767185856,5.9566,162.24,162.14,27.5]
[1746767186059,6.1664,162.2,162.16,6.1673]
[1746767186260,27.5,162.21,162.14,27.5]
[1746767186962,6.1661,162.2,162.17,6.1672]
[1746767187160,27.5,162.21,162.14,27.5]
[1746767187563,27.5,162.21,162.18,6.1665]
[1746767187762,27.5,162.21,162.14,27.5]
[1746767188963,6.1666,162.19,162.16,6.1676]
[1746767189157,27.5,162.21,162.16,6.1676]
[1746767189956,27.5,162.21,162.1,4.0214]
[1746767189957,27.5,162.21,162.11,27.5]
[1746767190368,6.1673,162.17,162.14,6.1683]
[1746767190668,27.5,162.21,162.11,27.5]
[1746767191671,27.5,162.21,162.13,6.1686]
[1746767191871,27.5,162.21,162.11,27.5]
[1746767192372,5.9566,162.24,162.11,27.5]
[1746767192668,27.5,162.21,162.11,27.5]
[1746767192972,27.5,162.21,162.18,6.1666]
[1746767193271,27.5,162.21,162.15,27.5]
[1746767193461,27.5,162.21,162.15,33.68119298]
[1746767193664,27.5,162.21,162.19,6.1664]
[1746767193870,27.5,162.21,162.15,33.68119298]
[1746767194172,33.6659,162.21,162.17,6.1671]
[1746767194373,33.6659,162.21,162.15,33.68119298]
[1746767194774,33.6659,162.21,162.18,6.1667]
[1746767195067,27.5,162.21,162.15,27.5]
[1746767195275,27.5,162.21,162.14,6.168]
[1746767195575,6.1665,162.19,162.12,27.66]
[1746767195973,6.1662,162.2,162.16,6.1676]
[1746767196375,27.5,162.21,162.12,27.66]
[1746767196676,27.5,162.21,162.14,6.18119298]
[1746767196970,27.5,162.21,162.18,6.1665]
[1746767197179,27.5,162.21,162.16,27.62]
[1746767197575,27.5,162.21,162.18,6.1668]
[1746767197767,33.6658,162.21,162.16,27.62]
[1746767197970,27.5,162.21,162.16,27.62]
[1746767198170,27.5,162.21,162.14,27.5]
[1746767198979,6.1666,162.19,162.15,6.1676]
[1746767199275,27.5,162.21,162.14,27.5]
[1746767200680,33.4566,162.24,162.14,27.5]
[1746767200979,31.3837,162.24,162.15,2.0307]
[1746767201374,37.5485,162.24,162.2,6.1658]
[1746767201983,6.165,162.23,162.2,6.1658]
[1746767204283,27.5,162.24,162.21,6.1654]
[1746767206287,27.5,162.24,162.18,27.54]
[1746767206887,27.5,162.24,162.21,6.1655]
[1746767207086,33.6648,162.24,162.18,27.54]
[1746767207487,33.6648,162.24,162.21,6.1657]
[1746767207687,6.1644,162.25,162.18,27.54]
[1746767208187,6.1644,162.25,162.21,6.1654]
[1746767208489,6.1644,162.25,162.18,27.54]
[1746767209290,6.1644,162.25,162.22,6.1652]
[1746767214089,6.1639,162.26,162.22,6.1652]
[1746767214285,27.54,162.27,162.18,55.08]
[1746767214490,538.802,162.31,162.2,9.85757267]
[1746767214692,6.162,162.31,162.28,6.1628]
[1746767214886,27.54,162.32,162.25,27.5]
[1746767215088,27.5,162.34,162.25,27.5]
[1746767215391,27.5,162.34,162.3,6.162]
[1746767215793,33.661,162.34,162.3,6.162]
[1746767215989,33.661,162.34,162.31,6.1618]
[1746767216192,33.661,162.34,162.25,27.5]
[1746767216389,6.161,162.34,162.25,27.5]
[1746767217689,27.54,162.35,162.25,27.5]
[1746767217888,27.54,162.35,162.28,6.163]
[1746767218091,6.1619,162.32,162.28,6.163]
[1746767218394,27.54,162.35,162.25,27.5]
[1746767218590,6.1609,162.34,162.25,27.5]
[1746767219088,33.7004,162.35,162.25,27.5]
[1746767220292,33.7004,162.35,162.31,6.1617]
[1746767222794,6.1608,162.34,162.31,6.1617]
[1746767223198,27.54,162.35,162.32,6.1615]
[1746767223494,33.7007,162.35,162.32,6.1615]
[1746767224198,6.1608,162.34,162.31,6.1618]
[1746767225093,33.7006,162.35,162.32,6.1614]
[1746767227998,6.1609,162.34,162.31,6.1618]
[1746767228192,27.54,162.35,162.29,27.52]
[1746767228898,33.7006,162.35,162.31,6.1616]
[1746767230003,6.1609,162.34,162.31,6.1616]
[1746767231301,33.7006,162.35,162.32,6.1615]
[1746767232802,27.54,162.35,162.33,6.1609]
[1746767233504,560.2,162.39,162.29,33.67119701]
[1746767233696,560.2,162.39,162.3,1.9221]
[1746767233998,6.1593,162.38,162.35,6.1601]
[1746767234201,560.2,162.39,162.31,27.48]
[1746767234398,27.48,162.39,162.31,27.48]
[1746767234598,33.6391,162.39,162.31,27.48]
[1746767235195,33.6391,162.39,162.35,6.16]
[1746767235701,27.48,162.39,162.33,27.48]
[1746767236308,27.48,162.39,162.31,27.48]
[1746767236507,6.1306,162.38,162.31,27.48]
[1746767236707,6.1306,162.38,162.3,27.48]
[1746767237599,27.48,162.37,162.3,27.48]
[1746767237805,27.48,162.37,162.29,6.1626]
[1746767238309,6.1614,162.33,162.29,6.1626]
[1746767238702,27.48,162.35,162.28,33.643]
[1746767238904,27.48,162.35,162.28,6.163]
[1746767239102,27.48,162.35,162.27,27.48]
[1746767239306,27.48,162.35,162.29,6.1626]
[1746767239506,6.1615,162.33,162.29,6.1626]
[1746767239908,6.1616,162.32,162.29,6.1626]
[1746767240310,6.1616,162.32,162.28,6.163]
[1746767241116,27.48,162.35,162.24,8.10159701]
[1746767241409,54.96,162.34,162.23,31.5646]
[1746767241604,6.15119701,162.33,162.23,6.165]
[1746767241808,6.15119701,162.33,162.22,27.48]
[1746767242009,6.1124,162.32,162.22,27.48]
[1746767242208,6.1633,162.28,162.24,6.1643]
[1746767242508,27.48,162.29,162.22,27.48]
[1746767242711,6.163,162.29,162.24,6.1643]
[1746767243009,6.163,162.29,162.22,27.48]
[1746767243210,27.48,162.3,162.24,6.1645]
[1746767243914,6.1633,162.28,162.24,6.1645]
[1746767244207,27.48,162.3,162.23,6.1649]
[1746767244415,6.1638,162.27,162.23,6.1649]
[1746767245615,6.1638,162.27,162.24,6.1646]
[1746767245911,6.1632,162.28,162.24,6.1646]
[1746767246309,6.1632,162.28,162.22,27.48]
[1746767246715,6.1635,162.27,162.22,27.48]
[1746767247216,6.1632,162.28,162.24,6.1643]
[1746767247417,6.1632,162.28,162.22,27.48]
[1746767247618,27.48,162.3,162.22,27.48]
[1746767247816,6.1632,162.28,162.24,6.1644]
[1746767248216,6.1632,162.28,162.22,27.48]
[1746767248416,6.1634,162.27,162.24,6.1644]
[1746767248716,27.48,162.3,162.22,27.48]
[1746767248919,6.1632,162.28,162.24,6.1644]
[1746767249122,6.1632,162.28,162.22,27.48]
[1746767249313,27.48,162.3,162.22,27.48]
[1746767250019,27.48,162.3,162.23,29.4678]
[1746767250321,33.6425,162.3,162.23,29.4678]
[1746767250816,33.6425,162.3,162.26,6.1636]
[1746767251025,33.6425,162.3,162.24,3.8471]
[1746767251320,6.1625,162.3,162.24,3.8471]
[1746767251716,54.96,162.33,162.23,29.4678]
[1746767252023,54.96,162.33,162.23,6.1647]
[1746767252919,54.96,162.33,162.22,6.1652]
[1746767253117,6.1643,162.25,162.19,31.3597]
[1746767253320,27.48,162.28,162.2,27.48]
[1746767253514,6.1645,162.25,162.21,6.1654]
[1746767254027,6.1645,162.25,162.22,6.1653]
[1746767254224,27.48,162.28,162.2,27.48]
[1746767255424,6.164,162.26,162.22,6.1652]
[1746767255726,363.113,162.36,162.2,37.33020259]
[1746767255924,55.02,162.35,162.2,37.33020259]
[1746767256126,6.1622,162.31,162.2,37.33020259]
[1746767256324,27.48,162.35,162.2,37.33020259]
[1746767256525,27.56,162.34,162.2,37.33020259]
[1746767256726,6.1616,162.32,162.29,6.1625]
[1746767256928,27.56,162.34,162.26,27.54]
[1746767257121,6.1617,162.32,162.27,6.1631]
[1746767258224,6.1622,162.31,162.27,6.1631]
[1746767258927,27.56,162.34,162.26,33.7038]
[1746767259223,27.56,162.34,162.26,27.54]
[1746767259427,27.56,162.34,162.26,33.7038]
[1746767260126,6.1628,162.29,162.26,33.7038]
[1746767260425,27.48,162.31,162.26,33.7038]
[1746767260928,6.1625,162.3,162.26,33.7038]
[1746767262429,6.1625,162.3,162.27,6.1634]
[1746767263227,33.6419,162.31,162.28,6.1628]
[1746767263728,27.48,162.31,162.28,6.1628]
[1746767264027,363.113,162.36,162.26,27.54]
[1746767264028,27.48,162.35,162.26,27.54]
[1746767264630,27.48,162.35,162.32,6.1612]
[1746767265228,33.6405,162.35,162.31,6.1618]
[1746767265429,27.48,162.35,162.31,6.1618]
[1746767266134,33.6405,162.35,162.31,6.1618]
[1746767266428,27.48,162.35,162.31,6.1618]
[1746767267528,33.6405,162.35,162.31,6.1618]
[1746767268735,27.48,162.35,162.32,6.1613]
[1746767269432,54.98,162.38,162.3,27.5]
[1746767269733,33.6396,162.38,162.3,33.64873096]
[1746767269934,33.6396,162.38,162.35,6.1602]
[1746767270131,27.48,162.38,162.35,6.1602]
[1746767270334,6.1589,162.4,162.36,6.16]
[1746767270633,27.48,162.41,162.34,27.54]
[1746767271634,27.48,162.41,162.34,33.7006]
[1746767271635,6.1594,162.38,162.34,33.7006]
[1746767271934,6.1594,162.38,162.34,27.54]
[1746767272134,6.1588,162.4,162.36,6.16]
[1746767272635,27.48,162.41,162.34,27.54]
[1746767272830,33.6384,162.41,162.37,6.1593]
[1746767273234,27.48,162.41,162.34,27.54]
[1746767273833,27.48,162.41,162.32,27.52]
[1746767274034,33.62873096,162.41,162.32,27.52]
[1746767274240,6.1596,162.38,162.34,6.1607]
[1746767275935,6.1596,162.38,162.35,6.1604]
[1746767276134,27.48,162.41,162.32,27.52]
[1746767276334,27.48,162.41,162.37,6.1594]
[1746767276633,33.6384,162.41,162.37,6.1594]
[1746767276829,33.6384,162.41,162.32,27.52]
[1746767276830,27.48,162.41,162.32,27.52]
[1746767277336,6.1587,162.4,162.32,27.52]
[1746767277527,357.0,162.48,162.33,6.14873096]
[1746767277733,27.46,162.44,162.34,27.46]
[1746767277935,6.1581,162.41,162.37,6.1596]
[1746767278738,6.1585,162.4,162.37,6.1596]
[1746767278935,27.46,162.44,162.38,6.1592]
[1746767279134,5.9083,162.47,162.36,27.5]
[1746767279334,6.1571,162.44,162.36,27.5]
[1746767279538,6.1571,162.44,162.4,6.1583]
[1746767279836,559.96,162.45,162.4,6.1583]
[1746767280934,6.1574,162.43,162.4,6.1583]
[1746767281342,559.96,162.45,162.4,6.1583]
[1746767281739,6.1572,162.44,162.4,6.1583]
[1746767282841,1.9423,162.51,162.41,27.5]
[1746767283137,1.9423,162.51,162.42,27.5]
[1746767283138,27.46,162.49,162.42,27.5]
[1746767283336,27.46,162.49,162.46,6.156]
[1746767284042,33.6152,162.49,162.44,6.1568]
[1746767284238,27.46,162.49,162.42,27.5]
[1746767284441,27.46,162.49,162.21,544.25038069]
[1746767284442,29.4884,162.48,162.35,27.52]
[1746767284641,29.4884,162.48,162.39,6.1588]
[1746767284842,2.0932,162.47,162.35,27.52]
[1746767285344,6.158,162.42,162.38,6.1591]
[1746767285546,27.46,162.44,162.35,27.52]
[1746767285946,6.1579,162.42,162.38,6.159]
[1746767286247,6.1579,162.42,162.35,27.52]
[1746767286643,6.1575,162.43,162.39,6.1589]
[1746767287346,6.1575,162.43,162.39,27.48]
[1746767287743,6.1575,162.43,162.39,33.6385]
[1746767287947,6.1578,162.42,162.39,33.6385]
[1746767288143,27.46,162.44,162.39,33.6385]
[1746767288344,27.46,162.44,162.39,27.48]
[1746767288651,6.1576,162.43,162.39,33.6388]
[1746767289039,6.1576,162.43,162.39,27.48]
[1746767289244,33.6171,162.44,162.39,27.48]
[1746767289445,27.46,162.44,162.39,27.48]
[1746767289750,33.6171,162.44,162.39,27.48]
[1746767289950,27.46,162.44,162.39,27.48]
[1746767290246,27.46,162.44,162.41,6.1579]
[1746767290956,6.1563,162.46,162.39,27.48]
[1746767291145,27.46,162.47,162.39,27.48]
[1746767291345,27.46,162.5,162.4,2.0641]
[1746767291546,6.1555,162.48,162.41,27.46]
[1746767292052,6.1552,162.49,162.41,27.46]
[1746767292851,6.1552,162.49,162.45,6.1563]
[1746767293753,6.1556,162.48,162.45,6.1563]
[1746767294854,27.46,162.5,162.43,27.48]
[1746767295253,27.46,162.5,162.45,6.1564]
[1746767295457,6.1554,162.49,162.45,6.1564]
[1746767295964,6.1554,162.49,162.46,6.1562]
[1746767296254,33.6149,162.5,162.46,6.1562]
[1746767296652,27.46,162.5,162.46,6.1562]
[1746767296854,6.1554,162.49,162.45,6.1565]
[1746767297648,6.1554,162.49,162.46,6.1562]
[1746767297850,27.46,162.5,162.25,7.25038069]
[1746767298051,1.9882,162.52,162.38,9.83371179]
[1746767298245,27.46,162.51,162.39,54.96]